bitfinex-derivatives/quotes_ETHF0:USTF0_20260131
["timestamp","ask_amount","ask_price","bid_price","bid_amount"]
[1769875801698,0.00285548,2519.3,2516.3,4.00400339]
[1769875801901,0.00285548,2519.3,2516.7,4.00400339]
[1769875802096,0.00285548,2519.3,2516.6,0.19896]
[1769875802097,0.00285548,2519.3,2517.1,4.00400339]
[1769875802297,0.00285548,2519.3,2517.3,4.00400339]
[1769875802603,2.331,2520.6,2517.5,4.00400339]
[1769875802802,0.32443638,2521.5,2518.4,4.00400339]
[1769875803099,0.02238187,2521.4,2518.6,4.00400339]
[1769875803304,0.02238187,2521.2,2518.6,4.00400339]
[1769875803601,0.29255581,2520.5,2518.6,4.00841934]
[1769875803802,0.29255581,2520.9,2518.6,4.00841934]
[1769875804006,0.49118581,2520.9,2518.6,4.00841934]
[1769875804303,2.973,2521.1,2518.6,4.00841934]
[1769875804496,0.29594962,2521.2,2518.6,4.00841934]
[1769875804698,0.29255581,2520.9,2518.6,4.00841934]
[1769875805898,2.984,2521.1,2518.6,4.20721934]
[1769875806098,2.984,2521.1,2518.8,3.79278067]
[1769875806502,3.42882731,2521.1,2518.8,3.79278067]
[1769875806702,2.984,2521.1,2519.0,3.79278067]
[1769875806902,3.42882731,2521.1,2519.2,3.88447478]
[1769875807101,0.00339381,2521.2,2519.2,3.88447478]
[1769875807800,0.00339381,2521.2,2519.4,3.88447478]
[1769875808002,0.45150965,2521.2,2519.4,3.88447478]
[1769875808202,0.00339381,2521.2,2519.4,3.88447478]
[1769875809502,0.00339381,2521.2,2519.6,3.88447478]
[1769875809900,0.00339381,2521.2,2519.7,3.88447478]
[1769875810406,0.47367868,2522.2,2519.7,3.88447478]
[1769875810599,0.47367868,2522.0,2519.7,3.88447478]
[1769875811207,0.47367868,2521.9,2519.7,3.88447478]
[1769875811407,0.00463289,2522.0,2519.7,3.88447478]
[1769875811997,0.00463289,2522.0,2519.7,4.08319478]
[1769875812504,0.53765782,2522.0,2519.7,3.88447478]
[1769875812703,0.53765782,2522.0,2519.9,3.88447478]
[1769875813503,0.00463289,2522.0,2519.9,3.88447478]
[1769875814408,0.00463289,2522.0,2520.0,3.88447478]
[1769875814603,3.575,2522.8,2520.0,4.08316478]
[1769875814803,3.574,2523.8,2520.7,3.88447478]
[1769875815110,3.574,2523.8,2521.0,0.19861]
[1769875815405,2.329,2524.6,2521.4,3.88447478]
[1769875815606,0.63851767,2524.5,2521.4,4.08644226]
[1769875815910,2.33292188,2524.6,2521.4,4.08644226]
[1769875815911,0.00392188,2524.6,2522.0,3.88447478]
[1769875816207,0.00392188,2524.6,2522.2,3.88447478]
[1769875816402,0.64243955,2524.6,2522.4,3.88447478]
[1769875816599,0.63851767,2524.4,2522.4,3.88447478]
[1769875817309,0.63513019,2522.4,2519.6,3.88447478]
[1769875817506,0.63513019,2522.4,2519.4,2.329]
[1769875817507,0.63513019,2522.4,2519.8,3.88447478]
[1769875817700,0.63888845,2522.9,2519.9,3.88447478]
[1769875817906,0.83732845,2523.3,2519.9,3.88447478]
[1769875818105,0.63888845,2523.3,2520.7,0.19864]
[1769875818307,0.00285343,2523.3,2521.1,3.88447478]
[1769875818607,0.64174188,2523.3,2521.3,3.88447478]
[1769875819309,0.63888845,2523.2,2521.3,3.88447478]
[1769875819512,0.14397103,2522.0,2520.2,3.94229798]
[1769875819808,0.14397103,2521.6,2519.8,3.94534061]
[1769875820014,0.14397103,2522.0,2519.8,3.94534061]
[1769875820315,0.14397103,2521.9,2519.8,3.94534061]
[1769875820514,0.14397103,2521.8,2519.8,3.94534061]
[1769875821809,0.34253103,2521.8,2519.8,3.94534061]
[1769875822111,0.02296235,2521.5,2519.8,3.94534061]
[1769875822301,0.02688177,2521.5,2519.8,0.00304263]
[1769875822500,0.02688177,2521.5,2519.3,4.00280232]
[1769875822501,0.02296235,2520.9,2519.3,4.00280232]
[1769875822702,0.02296235,2520.9,2518.3,3.573]
[1769875822703,0.01991972,2520.7,2518.4,4.00432363]
[1769875822904,0.19864,2520.7,2518.4,4.00432363]
[1769875823106,0.01991972,2520.6,2518.4,4.00432363]
[1769875823509,0.01057684,2519.8,2518.4,0.00399888]
[1769875823709,0.19874,2519.5,2518.4,0.0011434]
[1769875823913,0.01057684,2519.4,2517.8,4.00899508]
[1769875824407,0.19868,2520.3,2517.8,4.00899508]
[1769875824615,0.00943344,2520.1,2517.8,4.00899508]
[1769875824805,0.00943344,2520.0,2517.8,4.01375906]
[1769875825203,0.00943344,2519.9,2517.8,4.01375906]
[1769875825405,0.00943344,2519.8,2517.8,4.01375906]
[1769875827213,0.19871,2519.9,2517.8,4.01375906]
[1769875831116,3.57757303,2520.1,2517.9,4.0142835]
[1769875831320,0.19874,2519.4,2517.8,4.01904748]
[1769875831515,2.27475309,2519.8,2517.8,4.01904748]
[1769875831715,5.00053312,2519.8,2517.8,4.01904748]
[1769875831920,0.00357303,2520.1,2517.8,4.21791748]
[1769875832315,0.00357303,2520.1,2517.8,4.01904748]
[1769875833317,2.27475309,2520.0,2517.8,4.01904748]
[1769875833519,2.47347309,2519.8,2517.8,4.01904748]
[1769875833721,5.0056815,2519.7,2517.8,4.01904748]
[1769875833913,0.00357303,2520.1,2517.8,4.01904748]
[1769875834224,6.55,2520.0,2517.8,4.01904748]
[1769875834418,2.27475309,2519.6,2517.8,4.01904748]
[1769875834619,2.47348309,2519.6,2517.8,4.01904748]
[1769875834917,0.19877,2519.1,2517.8,0.00476398]
[1769875835116,8.18229874,2519.0,2517.8,0.00476398]
[1769875835316,2.27475309,2519.3,2517.8,4.01904748]
[1769875835516,2.982,2519.1,2517.8,4.01904748]
[1769875836522,2.982,2519.1,2517.8,0.00476398]
[1769875836721,4.9822062,2519.0,2517.8,0.00476398]
[1769875836915,7.47062598,2518.9,2517.8,0.00476398]
[1769875837118,4.98163233,2518.8,2517.8,0.00476398]
[1769875837318,4.98163233,2518.7,2517.8,3.98e-06]
[1769875837619,0.19883,2518.4,2516.0,4.01320919]
[1769875838420,2.989,2518.3,2516.0,4.01745292]
[1769875838620,3.575,2518.2,2516.0,4.01745292]
[1769875839031,3.77384,2518.2,2516.0,4.01745292]
[1769875839224,3.575,2518.2,2516.0,4.01745292]
[1769875839420,7.95596169,2518.1,2516.0,4.01745292]
[1769875839618,2.989,2518.1,2516.0,4.01745292]
[1769875839818,3.18785,2518.1,2516.0,4.01745292]
[1769875840026,6.565,2518.0,2516.0,4.01745292]
[1769875840923,0.00342704,2518.3,2516.0,4.21646292]
[1769875841228,0.00342704,2518.3,2516.4,4.21197225]
[1769875842330,0.00342704,2518.3,2516.7,4.21195225]
[1769875842524,0.00342704,2518.3,2516.9,4.01300225]
[1769875843630,3.576,2518.7,2516.9,4.01300225]
[1769875843830,0.19874,2519.4,2517.1,4.01300225]
[1769875844431,0.19875,2519.3,2517.1,4.01300225]
[1769875845230,3.18075,2519.3,2517.1,4.01300225]
[1769875845529,0.00368112,2519.3,2517.4,4.21190225]
[1769875846125,0.00368112,2519.3,2517.6,4.01300225]
[1769875847126,0.00368112,2519.3,2517.7,0.19887]
[1769875847326,0.00368112,2519.3,2517.8,4.01300225]
[1769875847538,0.00368112,2519.3,2517.8,4.01634032]
[1769875848741,0.00368112,2519.3,2518.0,4.01300225]
[1769875848936,34.71516305,2520.3,2518.0,4.01300225]
[1769875848937,2.29020365,2520.3,2518.0,4.01300225]
[1769875849240,5.1845281,2520.3,2518.4,4.01300225]
[1769875849537,2.29020365,2520.5,2518.4,4.01300225]
[1769875849833,2.29020365,2520.7,2518.7,0.1988]
[1769875850139,5.19822015,2520.6,2518.9,0.19878]
[1769875850339,0.0039745,2520.7,2519.0,3.576]
[1769875850930,0.0039745,2520.7,2519.1,4.01300225]
[1769875851336,5.1996924,2520.6,2519.1,4.01300225]
[1769875851536,5.1996924,2520.5,2519.1,4.01300225]
[1769875851741,5.1996924,2520.4,2519.1,4.01300225]
[1769875851930,5.1996924,2520.3,2519.1,4.01300225]
[1769875852130,2.29020365,2520.4,2519.1,4.01300225]
[1769875852131,5.1996924,2520.2,2519.1,4.01300225]
[1769875852337,2.29020365,2520.5,2519.1,4.01300225]
[1769875852538,7.49761819,2520.4,2519.1,4.01300225]
[1769875852841,5.20741454,2520.3,2519.1,4.01300225]
[1769875853139,5.20741454,2520.2,2519.1,4.01300225]
[1769875853340,7.49753243,2520.1,2519.1,4.01300225]
[1769875853539,5.20732878,2520.0,2519.1,4.01300225]
[1769875853739,5.20732878,2519.9,2519.1,4.01300225]
[1769875853941,5.20732878,2519.8,2519.1,4.01300225]
[1769875854136,2.29020365,2520.0,2519.1,4.01300225]
[1769875854338,5.18487269,2519.9,2519.1,4.01300225]
[1769875854536,5.18487269,2519.8,2519.1,4.01300225]
[1769875854731,2.29020365,2520.0,2519.1,4.01300225]
[1769875854732,2.29020365,2520.1,2519.1,4.01300225]
[1769875854931,5.18418253,2520.0,2519.1,4.01300225]
[1769875855134,5.76491861,2520.6,2519.1,4.01300225]
[1769875855135,2.29020365,2520.4,2519.1,4.01300225]
[1769875855331,5.18521243,2520.3,2519.1,4.01300225]
[1769875855540,2.29020365,2520.5,2519.1,4.01300225]
[1769875855747,5.18548141,2520.4,2519.1,4.01300225]
[1769875855947,5.18548141,2520.3,2519.1,4.01300225]
[1769875856149,2.29020365,2520.5,2519.1,4.01300225]
[1769875856345,2.29020365,2520.3,2519.1,4.01300225]
[1769875856543,5.18516504,2520.2,2519.1,4.01300225]
[1769875856746,5.18516504,2520.1,2519.1,4.01300225]
[1769875857045,2.29020365,2520.3,2519.1,4.01300225]
[1769875857344,0.0039745,2520.7,2519.1,4.01300225]
[1769875858043,0.0039745,2520.7,2519.1,4.21177225]
[1769875859239,0.0039745,2520.7,2519.0,3.575]
[1769875859240,0.0039745,2520.7,2519.2,0.19876]
[1769875859446,4.66655146,2521.7,2519.3,3.71669934]
[1769875859447,37.70116305,2521.7,2519.3,3.71669934]
[1769875859643,5.1373807,2521.6,2519.3,3.71669934]
[1769875859848,2.986,2521.7,2519.3,3.71669934]
[1769875860350,2.99068469,2521.7,2519.3,3.71669934]
[1769875861246,0.00468469,2521.7,2520.1,3.71669934]
[1769875861443,0.00468469,2521.7,2520.3,3.71669934]
[1769875861444,1.78824197,2521.7,2520.3,3.71669934]
[1769875861643,0.00468469,2521.7,2520.3,3.71669934]
[1769875863148,1.78824197,2521.7,2520.3,3.71669934]
[1769875863460,0.00468469,2521.7,2520.3,3.71669934]
[1769875864643,2.992,2522.6,2520.5,3.71669934]
[1769875864843,1.78933971,2522.5,2520.5,3.71669934]
[1769875865449,2.992,2522.6,2520.5,3.71669934]
[1769875865651,0.00364596,2522.6,2520.5,3.71669934]
[1769875866154,0.00364596,2522.6,2520.5,3.91534934]
[1769875866350,0.00364596,2522.6,2520.5,3.71669934]
[1769875866550,0.00364596,2522.6,2521.3,3.71669934]
[1769875866751,0.00364596,2522.6,2521.5,3.71669934]
[1769875867953,0.1984,2523.7,2521.7,3.63170811]
[1769875868151,1.80683579,2523.9,2521.7,3.63170811]
[1769875868346,6.91597006,2523.8,2521.7,3.63170811]
[1769875868546,1.80683579,2523.8,2521.7,3.63170811]
[1769875869157,1.80683579,2523.6,2521.7,3.63170811]
[1769875869855,0.00488846,2523.8,2521.7,3.63170811]
[1769875870046,0.00488846,2523.8,2522.0,3.83024811]
[1769875870250,1.86667164,2523.8,2522.0,3.63566871]
[1769875870655,6.9699929,2523.7,2522.0,3.63566871]
[1769875870854,1.86178318,2523.7,2522.0,3.63566871]
[1769875871252,1.86178318,2523.5,2522.0,3.63566871]
[1769875871448,0.00488846,2523.8,2522.0,3.63566871]
[1769875871957,1.84109517,2523.8,2522.0,3.63566871]
[1769875872155,1.83620671,2523.6,2522.0,3.63566871]
[1769875873354,1.88485654,2523.4,2522.0,3.63566871]
[1769875873655,6.99433095,2523.3,2522.0,3.63566871]
[1769875873854,1.88485654,2523.3,2522.0,3.63566871]
[1769875874253,2.08329654,2523.2,2522.0,3.63566871]
[1769875874453,5.11073117,2523.1,2522.0,3.63566871]
[1769875874653,36.60001959,2523.6,2522.0,3.63566871]
[1769875874957,2.08328654,2523.4,2522.0,3.63566871]
[1769875875153,1.88485654,2523.2,2522.0,0.0039606]
[1769875875462,0.19843,2523.4,2522.0,3.63566871]
[1769875875660,5.11753485,2523.3,2522.0,3.63566871]
[1769875875856,0.19843,2523.4,2522.0,3.63566871]
[1769875876051,5.11800183,2523.3,2522.0,3.63566871]
[1769875876256,7.18312779,2523.2,2522.0,3.63566871]
[1769875876456,5.11724434,2523.1,2522.0,3.63566871]
[1769875876660,2.992,2523.3,2522.0,3.63566871]
[1769875876857,2.992,2523.5,2522.0,3.63566871]
[1769875877058,5.12300416,2523.4,2522.0,3.63566871]
[1769875877363,5.12590303,2523.3,2522.0,3.63566871]
[1769875877662,1.8752913,2523.2,2522.0,3.63566871]
[1769875877962,1.8752913,2523.0,2522.0,0.0039606]
[1769875878362,5.12952306,2522.9,2522.0,0.0039606]
[1769875878557,34.71516305,2523.3,2522.0,3.63566871]
[1769875878860,3.001,2523.3,2522.0,3.63566871]
[1769875879459,34.72005151,2523.8,2522.0,3.63566871]
[1769875879664,5.12925061,2523.7,2522.0,3.63566871]
[1769875879860,0.00488846,2523.8,2522.0,3.63566871]
[1769875880657,0.00488846,2523.8,2522.0,3.83420871]
[1769875880860,0.00488846,2523.8,2522.2,3.83022811]
[1769875881062,0.00488846,2523.8,2522.4,3.63170811]
[1769875881367,0.00488846,2523.8,2522.6,3.63170811]
[1769875882565,30.69863177,2524.9,2522.6,3.63170811]
[1769875882772,3.96952796,2525.4,2523.1,3.83015811]
[1769875883073,3.96953796,2525.2,2523.1,3.63170811]
[1769875883271,3.77124796,2525.0,2523.1,3.63170811]
[1769875883459,5.07028488,2524.9,2523.1,3.63170811]
[1769875883666,3.77470532,2525.0,2523.1,3.63170811]
[1769875883864,0.00345736,2525.0,2523.1,3.63170811]
[1769875884268,3.77470532,2525.0,2523.1,3.63170811]
[1769875884570,3.77124796,2524.9,2523.1,3.63170811]
[1769875884770,3.77124796,2524.7,2523.1,3.63170811]
[1769875885871,3.77124796,2524.5,2523.1,3.63170811]
[1769875887574,3.77124796,2524.3,2523.1,3.63170811]
[1769875887970,3.96957796,2524.7,2523.1,3.63170811]
[1769875888171,3.77124796,2524.5,2523.1,3.63170811]
[1769875888371,8.73064935,2524.4,2523.1,3.63170811]
[1769875888572,3.77124796,2524.4,2523.1,3.63170811]
[1769875888972,3.77124796,2524.4,2522.6,3.57]
[1769875888973,3.77124796,2523.4,2522.6,3.57]
[1769875889175,0.19837,2524.2,2522.7,3.63170811]
[1769875889474,3.77124796,2524.0,2522.7,3.63170811]
[1769875890378,3.77124796,2523.8,2522.7,3.63170811]
[1769875890581,3.77124796,2523.6,2522.6,3.57]
[1769875890782,8.73239576,2523.5,2522.6,3.57]
[1769875891081,3.96964796,2523.8,2522.6,3.57]
[1769875891282,4.96091583,2523.7,2522.7,3.63170811]
[1769875891481,3.96964796,2523.8,2522.6,3.57]
[1769875891780,3.77124796,2523.6,2522.1,3.63170811]
[1769875891980,4.96425907,2523.7,2522.1,3.63170811]
[1769875891981,3.77124796,2523.4,2522.1,3.63170811]
[1769875892389,11.23155146,2523.9,2522.0,0.0039606]
[1769875892390,3.77124796,2523.2,2522.0,0.0039606]
[1769875892577,4.96648375,2523.1,2522.0,3.63566871]
[1769875892781,0.00446288,2523.2,2522.0,3.63566871]
[1769875893390,4.97207445,2523.1,2522.0,3.63566871]
[1769875893588,0.00446288,2523.2,2522.0,3.63566871]
[1769875893890,4.97528524,2523.1,2522.0,3.63566871]
[1769875894090,0.00446288,2523.2,2522.0,3.63566871]
[1769875894292,4.96957964,2523.1,2522.0,3.63566871]
[1769875894493,0.00446288,2523.2,2522.0,3.63566871]
[1769875895380,3.77124796,2523.9,2522.1,3.63170811]
[1769875895589,4.97503744,2523.8,2522.1,3.63170811]
[1769875895787,4.97503744,2523.8,2522.0,2.5549606]
[1769875895788,4.86490146,2524.4,2522.3,3.63170811]
[1769875895989,4.97594677,2524.3,2522.3,3.63170811]
[1769875896185,3.57,2524.8,2522.7,3.63170811]
[1769875896186,3.77124796,2524.8,2522.7,3.63170811]
[1769875896387,3.77124796,2524.8,2522.6,0.19849]
[1769875896388,3.77124796,2524.6,2522.9,3.63170811]
[1769875896586,4.97992593,2524.5,2522.9,3.63170811]
[1769875896890,3.77124796,2524.6,2522.9,3.63170811]
[1769875897192,3.79839692,2524.4,2522.9,3.63170811]
[1769875897389,3.79839692,2524.2,2522.9,3.63170811]
[1769875897589,4.98062261,2524.1,2522.9,3.63170811]
[1769875897790,4.98062261,2524.0,2522.9,3.63170811]
[1769875897988,3.79839692,2524.2,2522.9,3.63170811]
[1769875898291,3.79839692,2523.8,2522.2,3.75413034]
[1769875898493,3.79839692,2523.6,2522.2,3.75413034]
[1769875898692,3.79839692,2523.4,2522.2,3.75413034]
[1769875898892,8.77776191,2523.3,2522.2,3.75413034]
[1769875899088,4.97828509,2523.2,2522.2,3.75413034]
[1769875899298,3.79839692,2523.0,2522.0,0.0039606]
[1769875899595,3.79839692,2522.8,2522.0,0.0039606]
[1769875899795,4.97828509,2522.7,2522.0,0.0039606]
[1769875899988,3.79839692,2522.8,2522.0,0.0039606]
[1769875900186,4.9787568,2522.7,2522.0,0.0039606]
[1769875900490,3.79839692,2522.8,2522.0,0.0039606]
[1769875900689,0.00429886,2523.0,2522.0,3.75809094]
[1769875901897,4.98510602,2522.9,2522.0,3.85138875]
[1769875902095,0.00429886,2523.0,2522.0,3.85138875]
[1769875903299,4.9855015,2522.9,2522.0,3.85138875]
[1769875903501,0.00429886,2523.0,2522.0,3.85138875]
[1769875904601,3.79485684,2523.0,2522.0,3.85138875]
[1769875904808,3.79055798,2522.8,2522.0,0.0039606]
[1769875906006,3.79055798,2522.4,2520.8,3.84742815]
[1769875906206,3.79055798,2522.2,2520.8,3.84742815]
[1769875906401,3.79055798,2522.0,2520.8,3.84742815]
[1769875906907,3.79055798,2522.0,2520.8,3.85232624]
[1769875908597,3.98907798,2522.3,2520.8,3.85232624]
[1769875908997,3.79055798,2522.3,2520.8,3.85232624]
[1769875909704,3.79055798,2522.6,2520.8,3.85232624]
[1769875911612,4.66655146,2523.9,2521.3,3.84742815]
[1769875911805,3.79055798,2524.2,2522.1,3.84742815]
[1769875912007,3.79055798,2524.0,2522.2,3.84742815]
[1769875912311,3.79055798,2523.8,2522.1,3.571]
[1769875912504,3.79055798,2523.6,2522.1,3.571]
[1769875912701,3.79055798,2523.4,2521.8,3.84742815]
[1769875912905,3.79055798,2523.2,2521.8,3.84742815]
[1769875917815,3.79555979,2523.6,2521.8,3.84742815]
[1769875918011,3.79055798,2523.5,2521.8,3.84742815]
[1769875918212,0.00500181,2523.6,2521.8,3.84742815]
[1769875918407,0.00500181,2523.6,2521.8,4.04597815]
[1769875919019,0.00500181,2523.6,2522.1,3.84742815]
[1769875919219,0.00500181,2523.6,2522.3,3.84742815]
[1769875920018,3.79055798,2524.4,2522.5,4.04592815]
[1769875920219,3.79055798,2524.2,2522.5,4.04592815]
[1769875920717,3.79055798,2524.0,2522.1,3.84742815]
[1769875920914,3.79055798,2523.8,2522.1,3.84742815]
[1769875921115,0.00507774,2524.0,2522.8,3.84742815]
[1769875921315,3.79563572,2524.0,2522.8,0.00355329]
[1769875921712,3.79563572,2524.0,2522.8,3.85098144]
[1769875921910,0.00507774,2524.0,2522.8,3.85098144]
[1769875924322,0.00507774,2524.0,2522.8,4.04945144]
[1769875924615,3.79055798,2524.7,2522.8,4.04945144]
[1769875924817,3.79055798,2525.1,2523.0,3.84742815]
[1769875925018,3.79055798,2525.1,2523.4,3.84742815]
[1769875925324,3.79055798,2523.0,2520.8,3.84742815]
[1769875925521,3.79055798,2522.9,2520.8,3.84742815]
[1769875926219,3.79408795,2522.9,2520.8,3.85064766]
[1769875926713,0.00352997,2522.9,2521.5,3.84742815]
[1769875927916,0.00352997,2522.9,2521.7,3.62438778]
[1769875928221,3.97653301,2524.7,2522.0,3.62438778]
[1769875928421,3.97653301,2524.7,2522.5,3.62438778]
[1769875928727,10.54853301,2525.1,2522.7,3.62438778]
[1769875928923,8.96831821,2525.0,2522.7,3.62438778]
[1769875929125,3.98086361,2525.0,2522.7,3.82589818]
[1769875929422,0.0043306,2525.0,2523.2,3.62438778]
[1769875929621,0.0043306,2525.0,2523.4,3.62438778]
[1769875930024,0.0043306,2525.0,2523.5,3.62438778]
[1769875932319,3.98086361,2525.0,2523.1,3.62438778]
[1769875932525,3.97653301,2524.9,2523.1,3.62438778]
[1769875932925,3.0023306,2525.0,2523.1,3.62438778]
[1769875932926,0.0043306,2525.0,2523.1,3.62438778]
[1769875933331,3.98086361,2525.0,2523.1,3.62438778]
[1769875934829,4.17917361,2525.0,2523.1,3.62438778]
[1769875935420,2.17917361,2525.0,2523.2,5.45678778]
[1769875935623,6.563,2524.9,2523.3,3.62438778]
[1769875935824,0.19832,2524.8,2523.3,3.62438778]
[1769875936224,0.19832,2524.8,2523.2,1.8324]
[1769875936426,0.00456844,2524.8,2523.3,3.62438778]
[1769875937626,0.00456844,2524.8,2523.3,3.82282778]
[1769875939235,0.00456844,2524.8,2523.5,3.62438778]
[1769875939434,0.19825,2525.7,2523.6,3.62438778]
[1769875940235,0.19825,2525.7,2523.6,3.82279778]
[1769875940430,0.20228274,2525.7,2523.6,3.82279778]
[1769875940827,4.17881575,2525.7,2523.6,3.82279778]
[1769875941234,3.97653301,2525.5,2523.6,3.62438778]
[1769875941427,3.97653301,2525.3,2523.6,3.62438778]
[1769875941831,3.97653301,2525.1,2523.6,3.62438778]
[1769875942032,3.97653301,2524.9,2523.6,3.62438778]
[1769875942539,4.17482301,2525.2,2523.6,3.62438778]
[1769875944334,2.32215742,2525.5,2523.9,3.62438778]
[1769875944529,4.17477301,2525.9,2523.9,3.62438778]
[1769875944935,3.97653301,2525.9,2524.1,3.62438778]
[1769875945636,3.896,2526.0,2524.1,3.62438778]
[1769875946737,2.979,2526.2,2524.1,3.62438778]
[1769875947038,3.98056575,2525.7,2524.1,3.62438778]
[1769875947835,3.97653301,2525.5,2524.1,3.62438778]
[1769875948034,0.00403274,2525.7,2524.1,3.62438778]
[1769875949039,3.97653301,2525.5,2524.1,3.62438778]
[1769875949530,4.9994421,2525.4,2524.1,3.62438778]
[1769875949729,2.32619016,2525.7,2524.1,3.62438778]
[1769875949941,0.00403274,2525.7,2524.1,3.62438778]
[1769875952540,3.98056575,2525.7,2524.1,3.62438778]
[1769875953041,3.97653301,2525.5,2524.1,3.62438778]
[1769875953641,5.76491861,2526.1,2524.1,3.62438778]
[1769875953642,7.54353301,2526.8,2524.8,3.82270778]
[1769875953937,2.981,2526.7,2524.8,3.82270778]
[1769875954141,6.548,2526.6,2524.8,3.82270778]
[1769875954636,6.55128453,2526.6,2524.8,3.82700147]
[1769875955341,3.57028453,2526.6,2524.8,3.82700147]
[1769875955541,2.979,2526.5,2524.8,3.82700147]
[1769875955739,2.32215742,2527.2,2525.3,3.62438778]
[1769875955939,6.89098294,2528.0,2524.8,0.00429369]
[1769875955940,3.97653301,2527.1,2525.8,3.82262778]
[1769875956443,6.95653301,2527.1,2525.8,3.82262778]
[1769875956637,3.97653301,2527.0,2525.8,3.82262778]
[1769875956842,2.32215742,2527.7,2526.1,3.92561144]
[1769875957043,2.32215742,2528.5,2526.7,3.92561144]
[1769875957240,2.32215742,2529.4,2527.5,3.92561144]
[1769875957439,3.70706438,2529.4,2527.5,3.92561144]
[1769875957746,6.552,2529.3,2527.5,3.92561144]
[1769875957944,6.55522206,2529.3,2527.5,3.930663]
[1769875958141,3.70706438,2529.1,2527.5,3.930663]
[1769875958342,2.985,2529.0,2527.5,0.00505156]
[1769875958639,3.70706438,2528.9,2527.5,0.00505156]
[1769875958839,3.70706438,2528.7,2527.5,0.00505156]
[1769875959044,3.70706438,2528.7,2527.0,3.92561144]
[1769875959240,3.70706438,2528.5,2527.0,3.92561144]
[1769875959436,3.70706438,2528.3,2526.6,3.92561144]
[1769875959636,3.70706438,2528.3,2526.8,3.92561144]
[1769875959846,3.70706438,2528.5,2527.1,3.92561144]
[1769875960042,3.70706438,2528.5,2527.1,4.12869548]
[1769875960246,6.69406438,2528.8,2527.1,4.12869548]
[1769875960448,3.70706438,2528.7,2527.1,4.12869548]
[1769875960837,3.565,2529.0,2527.3,3.98772415]
[1769875961041,3.95911509,2528.9,2527.3,3.98772415]
[1769875961442,3.95911509,2528.7,2527.3,3.98772415]
[1769875961641,2.986,2528.6,2527.1,0.00494404]
[1769875961842,3.95911509,2528.5,2527.1,3.99266819]
[1769875962249,3.95911509,2528.3,2527.1,3.99266819]
[1769875962748,6.55,2528.2,2527.1,3.99266819]
[1769875962942,3.95911509,2528.1,2527.1,0.00494404]
[1769875963441,3.95911509,2527.9,2527.1,0.00494404]
[1769875963647,3.95911509,2527.9,2526.2,3.98772415]
[1769875964439,3.95911509,2527.9,2526.3,0.1982]
[1769875964742,2.984,2527.9,2526.4,3.98772415]
[1769875964939,3.95911509,2527.8,2526.4,3.98772415]
[1769875965137,3.95911509,2528.7,2526.4,3.98772415]
[1769875965343,3.95911509,2528.5,2526.6,3.98772415]
[1769875966143,3.95911509,2528.3,2526.6,3.98772415]
[1769875966450,3.95911509,2528.1,2526.6,3.98772415]
[1769875966646,3.95911509,2528.1,2526.5,0.19818]
[1769875966853,3.95911509,2528.1,2526.3,0.00351491]
[1769875967046,2.982,2528.0,2526.3,3.99123906]
[1769875967247,3.95911509,2527.9,2526.3,3.99123906]
[1769875967548,3.95911509,2527.9,2526.3,0.00351491]
[1769875968651,3.95911509,2527.7,2526.3,3.99123906]
[1769875969749,2.982,2527.6,2526.3,3.99123906]
[1769875969949,3.95911509,2527.5,2526.3,3.99123906]
[1769875970147,3.96229842,2527.5,2526.3,0.00351491]
[1769875970344,3.96229842,2527.5,2525.9,0.19823]
[1769875970345,3.95911509,2526.2,2523.7,3.98772415]
[1769875970550,3.95911509,2526.0,2524.2,3.98772415]
[1769875970843,3.95911509,2525.8,2524.2,3.98772415]
[1769875971042,3.95911509,2526.7,2524.4,3.98772415]
[1769875971345,3.95911509,2526.5,2524.4,3.99069583]
[1769875971746,3.95911509,2526.3,2524.4,3.99069583]
[1769875972148,3.95911509,2526.3,2524.4,4.18904583]
[1769875972654,10.51011509,2526.2,2524.4,4.18904583]
[1769875972953,3.95911509,2526.1,2524.4,4.18904583]
[1769875973749,3.95911509,2525.6,2522.4,3.98772415]
[1769875974055,3.95911509,2524.7,2522.4,3.98772415]
[1769875974244,3.95911509,2524.5,2522.4,3.98772415]
[1769875974556,3.95911509,2524.3,2522.4,3.98772415]
[1769875974851,3.96254525,2524.3,2522.4,3.99082087]
[1769875976553,3.95911509,2524.1,2522.4,3.99082087]
[1769875976854,6.96211509,2524.1,2522.4,3.99082087]
[1769875977049,6.96211509,2524.1,2522.6,3.98772415]
[1769875977550,3.95911509,2524.0,2522.6,3.98772415]
[1769875978257,3.002,2524.2,2522.6,3.98772415]
[1769875978448,3.95911509,2524.1,2522.6,3.98772415]
[1769875979356,0.00343016,2524.3,2522.6,3.98772415]
[1769875981557,3.96254525,2524.3,2522.6,3.98772415]
[1769875982459,0.00343016,2524.3,2523.0,3.98772415]
[1769875983256,3.96254525,2524.3,2523.0,3.98772415]
[1769875983452,3.95911509,2524.2,2522.6,3.98772415]
[1769875983956,3.96254525,2524.3,2522.6,3.98772415]
[1769875984453,0.00343016,2524.3,2523.0,3.98772415]
[1769875986557,3.96254525,2524.3,2523.0,3.98772415]
[1769875989158,3.86184823,2524.1,2522.5,1.8504]
[1769875989357,3.86184823,2524.0,2522.6,3.65508287]
[1769875990052,0.00343016,2524.3,2522.6,3.65508287]
[1769875990253,3.86527839,2524.3,2522.6,3.65508287]
[1769875995355,3.86527839,2524.3,2522.9,3.65508287]
[1769875995356,0.00343016,2524.3,2522.9,3.65508287]
[1769875995766,3.86527839,2524.3,2522.9,3.65508287]
[1769875996356,2.32215742,2525.4,2523.1,3.65508287]
[1769875996562,3.86184823,2525.4,2523.1,3.65508287]
[1769875996763,3.86184823,2525.1,2523.4,3.65508287]
[1769875996961,3.86184823,2524.9,2523.4,3.65508287]
[1769875997363,3.86626988,2524.9,2523.4,3.65508287]
[1769875999268,3.86184823,2524.7,2523.4,3.65508287]
[1769875999470,3.86184823,2524.7,2523.1,3.65508287]
[1769876000266,3.86184823,2524.5,2523.1,3.65508287]
[1769876001765,2.32215742,2524.8,2523.1,3.65508287]
[1769876001971,4.9045046,2524.7,2523.3,3.65508287]
[1769876002270,0.00442165,2524.9,2523.3,3.65508287]
[1769876002470,4.91269782,2524.8,2523.3,3.65508287]
[1769876002671,0.00442165,2524.9,2523.7,3.65508287]
[1769876002875,3.86184823,2525.7,2524.0,3.65508287]
[1769876003172,3.86184823,2525.4,2524.0,3.65508287]
[1769876003467,4.91565668,2525.3,2524.0,3.65508287]
[1769876003672,4.91565668,2525.2,2524.0,3.65508287]
[1769876003873,0.00474211,2525.2,2524.0,3.65508287]
[1769876004178,4.95301519,2525.1,2524.0,3.65508287]
[1769876004466,0.00474211,2525.2,2524.0,3.65508287]
[1769876005664,3.86659034,2525.2,2523.6,3.65508287]
[1769876005867,3.86184823,2525.0,2523.6,3.65508287]
[1769876006071,3.86184823,2524.8,2523.6,3.65508287]
[1769876006271,4.94819296,2524.7,2523.6,3.65508287]
[1769876006463,3.86184823,2524.8,2523.6,3.65508287]
[1769876006667,8.8087978,2524.7,2523.6,3.65508287]